fUSD/lending_fUSD_20240423
["ID","MTS","AMOUNT","RATE_DAILY","PERIOD"]
[323324696,1713894638720,-500.0,0.0001226,2]
[323324697,1713894638729,-500.0,0.0001226,2]
[323324698,1713894638738,-500.0,0.0001226,2]
[323324699,1713894638747,-500.0,0.0001226,2]
[323324700,1713894638756,-500.0,0.0001226,2]
[323324701,1713894638765,-500.0,0.00012261,2]
[323324702,1713894638774,-500.0,0.00012261,2]
[323324703,1713894638784,-311.15,0.00012261,2]
[323324704,1713894638794,-147.23447788,0.00012261,2]
[323324705,1713894638850,-352.76552212,0.00012261,2]
[323324706,1713894638860,-73.50117266,0.00012261,2]
[323324707,1713894639294,-238.14108327,0.00012261,2]
[323324708,1713894639306,-700.0,0.000123,4]
[323324709,1713894639317,-1000.0,0.0001236,2]
[323324710,1713894639329,-500.0,0.0001236,2]
[323324711,1713894639341,-210.0,0.00012362,2]
[323324712,1713894639354,-1000.0,0.000124,4]
[323324713,1713894639364,-251.6194917,0.000125,2]
[323324714,1713894639376,-730.64389274,0.000125,4]
[323324715,1713894639409,-316.62,0.00012257,2]
[323324723,1713894640279,-183.38,0.00012257,2]
[323324724,1713894640293,-573.37954002,0.000125,4]
[323324725,1713894640307,-95.97656724,0.000125,4]
[323324726,1713894640318,-500.0,0.00012528,2]
[323324727,1713894640329,-468.38575763,0.00012528,2]
[323324728,1713894640390,-31.61424237,0.00012528,2]
[323324729,1713894640401,-500.0,0.00012528,2]
[323324730,1713894640411,-500.0,0.00012528,2]
[323324731,1713894640422,-872.21,0.00012528,2]
[323324732,1713894640434,-500.0,0.00012528,2]
[323324733,1713894640450,-500.0,0.00012528,2]
[323324734,1713894640463,-500.0,0.00012528,2]
[323324735,1713894640475,-508.42,0.00012528,2]
[323324736,1713894640487,-500.0,0.00012528,2]
[323324737,1713894640500,-442.85216889,0.00012528,2]
[323324738,1713894640516,-654.01783111,0.00012528,2]
[323324739,1713894640528,-150.27216889,0.00012528,2]
[323324740,1713894640558,-440.34783111,0.00012528,2]
[323324741,1713894640569,-234.88730421,0.00012528,2]
[323324742,1713894640583,-400.15269579,0.00012528,2]
[323324743,1713894640593,-2231.65,0.00012528,2]
[323324744,1713894640605,-625.05,0.00012528,2]
[323324745,1713894640615,-500.0,0.00012531,2]
[323324746,1713894640625,-500.0,0.00012531,2]
[323324747,1713894640636,-500.0,0.00012531,2]
[323324748,1713894640647,-500.0,0.00012531,2]
[323324749,1713894640658,-500.0,0.00012531,2]
[323324750,1713894640669,-500.0,0.00012531,2]
[323324751,1713894640680,-500.0,0.00012531,2]
[323324752,1713894640696,-500.0,0.00012531,2]
[323324753,1713894640708,-500.0,0.00012531,2]
[323324754,1713894640719,-500.0,0.00012531,2]
[323324755,1713894640729,-500.0,0.00012531,2]
[323324756,1713894640740,-500.0,0.00012531,2]
[323324757,1713894640750,-500.0,0.00012531,2]
[323324758,1713894640760,-500.0,0.00012531,2]
[323324759,1713894640770,-500.0,0.00012531,2]
[323324760,1713894640781,-500.0,0.00012531,2]
[323324761,1713894640791,-500.0,0.00012531,2]
[323324764,1713894640802,-500.0,0.00012531,2]
[323324766,1713894640812,-500.0,0.00012531,2]
[323324767,1713894640822,-758.95,0.00012531,2]
[323324768,1713894640832,-500.0,0.00012531,2]
[323324769,1713894640842,-500.0,0.00012531,2]
[323324770,1713894640854,-500.0,0.00012531,2]
[323324771,1713894640865,-500.0,0.00012531,2]
[323324772,1713894640878,-993.74,0.00012531,2]
[323324773,1713894640888,-500.0,0.00012531,2]
[323324774,1713894640899,-747.38,0.00012531,2]
[323324775,1713894640909,-585.68,0.00012531,2]
[323324776,1713894640920,-500.0,0.00012531,2]
[323324777,1713894640930,-1822.55,0.00012531,2]
[323324778,1713894640943,-500.0,0.00012531,2]
[323324779,1713894640954,-500.0,0.00012531,2]
[323324780,1713894640965,-500.0,0.00012531,2]
[323324781,1713894640975,-843.8,0.00012531,2]
[323324782,1713894640986,-868.42,0.00012531,2]
[323324783,1713894640996,-1450.95,0.00012531,2]
[323324784,1713894641007,-500.0,0.00012531,2]
[323324785,1713894641017,-500.0,0.00012531,2]
[323324786,1713894641029,-500.0,0.00012531,2]
[323324787,1713894641039,-500.0,0.00012531,2]
[323324788,1713894641055,-500.0,0.00012531,2]
[323324789,1713894641073,-500.0,0.00012531,2]
[323324790,1713894641086,-500.0,0.00012531,2]
[323324791,1713894641098,-500.0,0.00012531,2]
[323324792,1713894641109,-500.0,0.00012531,2]
[323324793,1713894641120,-500.0,0.00012531,2]
[323324794,1713894641131,-509.66,0.00012531,2]
[323324795,1713894641142,-500.0,0.00012531,2]
[323324796,1713894641154,-500.0,0.00012531,2]
[323324797,1713894641165,-500.0,0.00012531,2]
[323324798,1713894641176,-212.93157549,0.00012531,2]
[323324799,1713894641188,-795.38,0.00012531,2]
[323324800,1713894641199,-6533.86,0.00012531,2]
[323324801,1713894641211,-500.0,0.00012531,2]
[323324802,1713894641222,-500.0,0.00012531,2]
[323324803,1713894641232,-500.0,0.00012534,2]
[323324804,1713894641244,-500.0,0.00012534,2]
[323324805,1713894641255,-500.0,0.00012534,2]
[323324806,1713894641266,-500.0,0.00012534,2]
[323324807,1713894641277,-527.64,0.00012534,2]
[323324808,1713894641289,-580.0,0.00012534,2]
[323324809,1713894641301,-500.0,0.00012534,2]
[323324810,1713894641313,-500.0,0.00012534,2]
[323324811,1713894641325,-524.62,0.00012534,2]
[323324812,1713894641338,-500.0,0.00012534,2]
[323324813,1713894641350,-500.0,0.00012534,2]
[323324814,1713894641362,-500.0,0.00012534,2]
[323324815,1713894641375,-500.0,0.00012534,2]
[323324816,1713894641388,-500.0,0.00012534,2]
[323324817,1713894641399,-500.0,0.00012535,2]
[323324818,1713894641411,-500.0,0.00012535,2]
[323324819,1713894641422,-500.0,0.00012535,2]
[323324820,1713894641433,-150.0,0.00012537,2]
[323324821,1713894641451,-150.0,0.00012555,2]
[323324822,1713894641463,-150.0,0.00012573,2]
[323324823,1713894641477,-1700.0,0.000126,4]
[323324824,1713894641488,-559.0,0.00012602,2]
[323324825,1713894641499,-1404.0,0.00012602,2]
[323324826,1713894641511,-150.0,0.0001261,2]
[323324827,1713894641522,-150.0,0.00012684,2]
[323324828,1713894641533,-300.0,0.000127,4]
[323324829,1713894641544,-7500.0,0.00012705,2]
[323324830,1713894641556,-500.0,0.00012705,2]
[323324831,1713894641569,-500.0,0.00012714,2]
[323324832,1713894641579,-150.0,0.00012723,2]
[323324833,1713894641590,-150.0,0.00012723,2]
[323324834,1713894641601,-150.0,0.0001273,2]
[323324835,1713894641612,-150.0,0.00012732,2]
[323324836,1713894641622,-150.0,0.00012738,2]
[323324837,1713894641633,-150.0,0.00012743,2]
[323324838,1713894641644,-150.0,0.00012755,2]
[323324839,1713894641656,-150.0,0.00012757,2]
[323324840,1713894641667,-795.0,0.00012765,2]
[323324841,1713894641678,-150.0,0.00012766,2]
[323324842,1713894641692,-150.0,0.00012767,2]
[323324843,1713894641702,-150.0,0.00012769,2]
[323324844,1713894641713,-150.0,0.0001277,2]
[323324845,1713894641724,-150.0,0.00012772,2]
[323324846,1713894641735,-150.0,0.00012775,2]
[323324847,1713894641745,-150.0,0.00012775,2]
[323324848,1713894641756,-150.0,0.00012776,2]
[323324849,1713894641767,-1500.0,0.00012777,2]
[323324850,1713894641778,-150.0,0.00012779,2]
[323324851,1713894641789,-150.0,0.00012779,2]
[323324852,1713894641799,-150.0,0.00012787,2]
[323324853,1713894641810,-150.0,0.00012792,2]
[323324854,1713894641820,-500.0,0.00012793,2]
[323324855,1713894641831,-500.0,0.00012793,2]
[323324856,1713894641842,-500.0,0.00012793,2]
[323324857,1713894641853,-500.0,0.00012793,2]
[323324858,1713894641865,-500.0,0.00012793,2]
[323324859,1713894641875,-1593.7,0.00012793,2]
[323324860,1713894641886,-934.09,0.00012793,2]
[323324861,1713894641897,-500.0,0.00012793,2]
[323324862,1713894641907,-1305.98,0.00012793,2]
[323324863,1713894641919,-500.0,0.00012793,2]
[323324864,1713894641930,-728.22,0.00012793,2]
[323324865,1713894641944,-500.0,0.00012793,2]
[323324866,1713894641955,-521.78,0.00012793,2]
[323324867,1713894641966,-500.0,0.00012793,2]
[323324868,1713894641977,-500.0,0.00012793,2]
[323324869,1713894641989,-500.0,0.00012793,2]
[323324870,1713894642002,-1321.06,0.00012793,2]
[323324871,1713894642014,-522.52,0.00012793,2]
[323324872,1713894642025,-500.0,0.00012793,2]
[323324873,1713894642036,-538.48,0.00012793,2]
[323324874,1713894642047,-5315.6,0.00012793,2]
[323324875,1713894642058,-500.0,0.00012793,2]
[323324876,1713894642069,-15200.00000026,0.00012794,2]
[323324877,1713894642081,-150.0,0.00012796,2]
[323324878,1713894642093,-150.0,0.00012797,2]
[323324879,1713894642106,-300.0,0.000128,4]
[323324880,1713894642117,-1500.0,0.00012801,2]
[323324881,1713894642129,-500.0,0.00012801,2]
[323324882,1713894642141,-500.0,0.00012801,2]
[323324883,1713894642152,-500.0,0.00012802,2]
[323324884,1713894642164,-500.0,0.00012802,2]
[323324885,1713894642175,-500.0,0.00012802,2]
[323324886,1713894642187,-500.0,0.00012802,2]
[323324887,1713894642200,-872.21,0.00012802,2]
[323324888,1713894642213,-500.0,0.00012802,2]
[323324889,1713894642225,-500.0,0.00012802,2]
[323324890,1713894642237,-500.0,0.00012802,2]
[323324891,1713894642249,-508.42,0.00012802,2]
[323324892,1713894642261,-500.0,0.00012802,2]
[323324893,1713894642275,-1096.87,0.00012802,2]
[323324894,1713894642285,-590.62,0.00012802,2]
[323324895,1713894642296,-635.04,0.00012802,2]
[323324896,1713894642307,-2231.65,0.00012802,2]
[323324897,1713894642319,-625.05,0.00012802,2]
[323324898,1713894642330,-155.0,0.00012803,2]
[323324899,1713894642343,-194.35396704,0.00012803,2]
[323324900,1713894642354,-155.0,0.00012803,2]
[323324901,1713894642365,-192.70495298,0.00012803,2]
[323324902,1713894642376,-2999.50193074,0.00012803,2]
[323324903,1713894642387,-155.0,0.00012804,2]
[323324904,1713894642398,-363.15940458,0.00012804,2]
[323324905,1713894642408,-207.72132305,0.00012804,2]
[323324906,1713894642420,-684.0277903,0.00012804,2]
[323324907,1713894642430,-155.0,0.00012804,2]
[323324908,1713894642446,-706.34979977,0.00012804,2]
[323324909,1713894642461,-357.08497155,0.00012804,2]
[323324910,1713894642472,-500.0,0.00012805,2]
[323324911,1713894642483,-500.0,0.00012805,2]
[323324912,1713894642495,-500.0,0.00012805,2]
[323324913,1713894642507,-500.0,0.00012805,2]
[323324914,1713894642518,-635.40389838,0.00012805,2]
[323324915,1713894642530,-500.0,0.00012805,2]
[323324916,1713894642541,-500.0,0.00012805,2]
[323324917,1713894642550,-500.0,0.00012805,2]
[323324918,1713894642561,-500.0,0.00012805,2]
[323324919,1713894642571,-500.0,0.00012805,2]
[323324920,1713894642581,-500.0,0.00012805,2]
[323324921,1713894642589,-500.0,0.00012805,2]
[323324922,1713894642596,-500.0,0.00012805,2]
[323324923,1713894642603,-500.0,0.00012805,2]
[323324924,1713894642611,-500.0,0.00012805,2]
[323324925,1713894642622,-500.0,0.00012805,2]
[323324926,1713894642632,-500.0,0.00012805,2]
[323324927,1713894642642,-272.90257629,0.00012805,2]
[323324928,1713894642652,-500.0,0.00012805,2]
[323324929,1713894642663,-758.95,0.00012805,2]
[323324930,1713894642673,-500.0,0.00012805,2]
[323324931,1713894642683,-500.0,0.00012805,2]
[323324932,1713894642699,-500.0,0.00012805,2]
[323324933,1713894642710,-500.0,0.00012805,2]
[323324934,1713894642722,-993.74,0.00012805,2]
[323324935,1713894642733,-175.97396743,0.00012805,2]
[323324936,1713894642744,-747.38,0.00012805,2]
[323324937,1713894642755,-585.68,0.00012805,2]
[323324938,1713894642765,-500.0,0.00012805,2]
[323324939,1713894642776,-1822.55,0.00012805,2]
[323324940,1713894642785,-500.0,0.00012805,2]
[323324941,1713894642795,-500.0,0.00012805,2]
[323324942,1713894642806,-500.0,0.00012805,2]
[323324943,1713894642816,-843.8,0.00012805,2]
[323324944,1713894642827,-868.42,0.00012805,2]
[323324945,1713894642838,-1450.95,0.00012805,2]
[323324946,1713894642848,-500.0,0.00012805,2]
[323324947,1713894642859,-500.0,0.00012805,2]
[323324948,1713894642869,-500.0,0.00012805,2]
[323324949,1713894642880,-500.0,0.00012805,2]
[323324950,1713894642890,-500.0,0.00012805,2]
[323324951,1713894642900,-500.0,0.00012805,2]
[323324952,1713894642910,-500.0,0.00012805,2]
[323324953,1713894642921,-500.0,0.00012805,2]
[323324954,1713894642931,-500.0,0.00012805,2]
[323324955,1713894642947,-500.0,0.00012805,2]
[323324971,1713894642958,-509.66,0.00012805,2]
[323324972,1713894643348,-500.0,0.00012805,2]
[323324973,1713894643363,-500.0,0.00012805,2]
[323324974,1713894643373,-500.0,0.00012805,2]
[323324975,1713894643383,-795.38,0.00012805,2]
[323324976,1713894643392,-6533.86,0.00012805,2]
[323324977,1713894643401,-500.0,0.00012805,2]
[323324978,1713894643410,-500.0,0.00012805,2]
[323324979,1713894643419,-150.0,0.00012806,2]
[323324980,1713894643428,-155.0,0.00012807,2]
[323324981,1713894643438,-150.0,0.00012807,2]
[323324982,1713894643448,-500.0,0.00012808,2]
[323324983,1713894643457,-500.0,0.00012808,2]
[323324984,1713894643468,-500.0,0.00012808,2]
[323324985,1713894643478,-500.0,0.00012808,2]
[323324986,1713894643487,-527.64,0.00012808,2]
[323324987,1713894643497,-580.0,0.00012808,2]
[323324988,1713894643507,-500.0,0.00012808,2]
[323324989,1713894643516,-500.0,0.00012808,2]
[323324990,1713894643525,-500.0,0.00012808,2]
[323324991,1713894643536,-500.0,0.00012808,2]
[323324992,1713894643547,-500.0,0.00012808,2]
[323324993,1713894643557,-500.0,0.00012808,2]
[323324994,1713894643568,-500.0,0.00012808,2]
[323324995,1713894643577,-500.0,0.00012809,2]
[323324996,1713894643586,-500.0,0.00012809,2]
[323324997,1713894643595,-500.0,0.00012809,2]
[323324998,1713894643604,-150.0,0.00012812,2]
[323324999,1713894643613,-150.0,0.00012812,2]
[323325000,1713894643622,-500.0,0.00012818,2]
[323325001,1713894643631,-150.0,0.00012823,2]
[323325002,1713894643640,-150.0,0.00012823,2]
[323325003,1713894643649,-500.0,0.00012827,2]
[323325004,1713894643659,-150.0,0.0001283,2]
[323325005,1713894643668,-150.0,0.00012835,2]
[323325006,1713894643678,-500.0,0.00012836,2]
[323325007,1713894643688,-150.0,0.00012837,2]
[323325008,1713894643699,-150.0,0.00012844,2]
[323325009,1713894643708,-150.0,0.00012845,2]
[323325010,1713894643718,-150.0,0.00012846,2]
[323325011,1713894643727,-150.0,0.00012848,2]
[323325012,1713894643737,-150.0,0.00012849,2]
[323325013,1713894643746,-150.0,0.00012851,2]
[323325014,1713894643756,-150.0,0.00012853,2]
[323325015,1713894643766,-1500.0,0.00012853,2]
[323325016,1713894643775,-150.0,0.00012857,2]
[323325017,1713894643784,-150.0,0.00012862,2]
[323325018,1713894643793,-150.0,0.00012867,2]
[323325019,1713894643802,-150.0,0.00012867,2]
[323325020,1713894643811,-180.7680192,0.00012869,2]
[323325021,1713894643820,-150.0,0.00012872,2]
[323325022,1713894643830,-150.0,0.00012883,2]
[323325023,1713894643839,-150.0,0.00012885,2]
[323325024,1713894643848,-150.0,0.00012887,2]
[323325025,1713894643858,-150.0,0.00012892,2]
[323325026,1713894643867,-1000.0,0.00012894,2]
[323325027,1713894643877,-500.0,0.00012894,2]
[323325028,1713894643886,-150.0,0.00012895,2]
[323325029,1713894643895,-3885.8076,0.00012898,2]
[323325030,1713894643904,-176.35323577,0.00012899,2]
[323325031,1713894643913,-620.37269024,0.000129,2]
[323325032,1713894643923,-300.0,0.000129,4]
[323325033,1713894643932,-9887.72384154,0.000129,2]
[323325034,1713894643944,-150.0,0.00012904,2]
[323325035,1713894643953,-150.0,0.00012904,2]
[323325036,1713894643963,-150.0,0.00012915,2]
[323325037,1713894643973,-150.0,0.00012921,2]
[323325038,1713894643983,-150.0,0.00012936,2]
[323325039,1713894643992,-150.0,0.00012936,2]
[323325040,1713894644002,-150.0,0.0001295,2]
[323325041,1713894644011,-880.0,0.0001296,2]
[323325042,1713894644020,-150.0,0.00012961,2]
[323325043,1713894644030,-150.0,0.0001297,2]
[323325044,1713894644039,-150.0,0.00012975,2]
[323325045,1713894644048,-150.0,0.00012976,2]
[323325046,1713894644058,-536.64463076,0.00012979,2]
[323325047,1713894644067,-12799.0330095,0.0001298,5]
[323325048,1713894644321,-366.976,0.0001298,5]
[323325049,1713894644333,-1198.68,0.0001298,5]
[323325050,1713894644355,-1105.3158951,0.0001298,5]
[323325051,1713894644366,-550.73090754,0.0001298,5]
[323325052,1713894644377,-2434.70969997,0.0001298,5]
[323325053,1713894644640,-499.99,0.000126,2]
[323325054,1713894644649,-630.40999947,0.0001298,5]
[323325055,1713894644665,-402860.54200873,0.0001298,5]
[323325056,1713894644676,-3959.850002,0.0001298,5]
[323325057,1713894644686,-2759.5004898,0.0001298,5]
[323325061,1713894646491,-500.0,0.00012531,2]
[323325062,1713894646502,-500.0,0.00012805,2]
[323325063,1713894646512,-3042.12756515,0.0001298,5]
[323325064,1713894646553,-398.31495648,0.0001298,5]
[323325082,1713895014090,1291.41,9.783e-05,2]
[323325087,1713895197582,-167.53,0.00011399,2]
[323325088,1713895197608,-250.0,0.00011441,2]
[323325089,1713895197633,-265.47853017,0.00011679,2]
[323325090,1713895197657,-462.82251375,0.0001168,2]
[323325091,1713895197682,-1096.4,0.000117,2]
[323325092,1713895197707,-159.19,0.00011747,2]
[323325093,1713895197731,-150.0,0.00011788,2]
[323325094,1713895197756,-9410.09,0.00011789,2]
[323325095,1713895197779,-313.4,0.00011818,2]
[323325096,1713895202428,150.0,0.00011868,2]
[323325097,1713895218442,-3411.08895608,0.00011869,2]
[323325105,1713895506096,1255.4,9.597e-05,2]
[323325194,1713895769015,-250.0,0.00011369,2]
[323325195,1713895769036,-817.84000414,0.00011485,2]
[323325196,1713895769056,-1808.72074226,0.00011585,2]
[323325197,1713895769076,-532.65235782,0.00011586,2]
[323325198,1713895769095,-537.49633158,0.00011587,2]
[323325199,1713895769115,-971.53,0.00011588,2]
[323325200,1713895769138,-159.19,0.00011601,2]
[323325201,1713895769158,-150.0,0.00011708,2]
[323325202,1713895769178,-159.19,0.00011752,2]
[323325203,1713895769197,-1505.56,0.00011757,2]
[323325204,1713895769217,-150.99,0.00011757,2]
[323325205,1713895769237,-1255.4,0.00011861,2]
[323325206,1713895769257,-150.0,0.00011867,2]
[323325207,1713895769277,-269.33,0.00011868,2]
[323325208,1713895769297,-1282.1005642,0.00011869,2]
[323325209,1713895770550,-6080.44047972,0.00011869,2]
[323325210,1713895770569,-299.99,0.00011869,2]
[323325211,1713895770588,-165.62,0.00011885,2]
[323325212,1713895770608,-159.19,0.00011903,2]
[323325213,1713895770629,-2750.0,0.00012,2]
[323325214,1713895770649,-544.75952028,0.00012047,2]
[323325215,1713895773422,-940.0,0.00011858,2]
[323325216,1713895773443,-6305.82047972,0.00012047,2]
[323325217,1713895773465,-159.19,0.00012055,2]
[323325218,1713895773486,-159.19,0.00012206,2]
[323325219,1713895773507,-537.35627901,0.00012348,2]
[323325220,1713895773527,-1898.44324127,0.00012433,2]
[323325221,1713895775918,-1003.37,0.00011924,2]
[323325222,1713895775941,-5601.55675873,0.00012433,2]
[323325223,1713895776478,-251.6194917,0.000125,2]
[323325224,1713895776500,-1000.0,0.00012531,2]
[323325225,1713895776522,-500.0,0.00012531,2]
[323325226,1713895776549,-500.0,0.00012531,2]
[323325227,1713895776571,-500.0,0.00012531,2]
[323325228,1713895776593,-500.0,0.00012531,2]
[323325229,1713895776615,-143.45374957,0.00012531,2]
[323325230,1713895777966,-356.54625043,0.00012531,2]
[323325231,1713895777989,-500.0,0.00012531,2]
[323325232,1713895778012,-500.0,0.00012531,2]
[323325233,1713895778033,-500.0,0.00012531,2]
[323325234,1713895778054,-500.0,0.00012531,2]
[323325235,1713895778075,-500.0,0.00012531,2]
[323325236,1713895778100,-500.0,0.00012531,2]
[323325237,1713895778120,-500.0,0.00012531,2]
[323325238,1713895778144,-500.0,0.00012531,2]
[323325239,1713895778164,-500.0,0.00012531,2]
[323325240,1713895778183,-196.76920747,0.00012531,2]
[323325241,1713895778204,-500.0,0.00012531,2]
[323325242,1713895778225,-500.0,0.00012531,2]
[323325243,1713895778246,-500.0,0.00012531,2]
[323325244,1713895778266,-500.0,0.00012531,2]
[323325245,1713895778286,-155.10683507,0.00012531,2]
[323325246,1713895778307,-1470.21150395,0.00012531,2]
[323325247,1713895778328,-500.0,0.00012532,2]
[323325248,1713895778350,-500.0,0.00012532,2]
[323325249,1713895778370,-321.36620308,0.00012532,2]
[323325250,1713895779339,-1102.97899824,0.00011806,2]
[323325251,1713895779362,-178.63379692,0.00012532,2]
[323325252,1713895779384,-500.0,0.00012532,2]
[323325253,1713895779405,-500.0,0.00012532,2]
[323325254,1713895779426,-500.0,0.00012532,2]
[323325255,1713895779447,-500.0,0.00012532,2]
[323325256,1713895779470,-575.05430429,0.00012532,2]
[323325257,1713895779490,-397.26440779,0.00012532,2]
[323325258,1713895779510,-500.0,0.00012532,2]
[323325259,1713895779531,-568.59,0.00012532,2]
[323325260,1713895779556,-500.0,0.00012532,2]
[323325261,1713895779578,-500.0,0.00012532,2]
[323325262,1713895779599,-500.0,0.00012532,2]
[323325263,1713895779621,-500.0,0.00012532,2]
[323325264,1713895779643,-500.0,0.00012532,2]
[323325265,1713895779666,-500.0,0.00012532,2]
[323325266,1713895779686,-500.0,0.00012532,2]
[323325267,1713895779706,-500.0,0.00012532,2]
[323325268,1713895779727,-500.0,0.00012532,2]
[323325269,1713895779752,-177.47849276,0.00012532,2]
[323325270,1713895780197,-322.52150724,0.00012532,2]
[323325271,1713895780218,-643.38644014,0.00012532,2]
[323325272,1713895780242,-645.91,0.00012532,2]
[323325273,1713895780263,-500.0,0.00012532,2]
[323325274,1713895780284,-500.0,0.00012532,2]
[323325275,1713895780308,-500.0,0.00012532,2]
[323325276,1713895780331,-500.0,0.00012532,2]
[323325277,1713895780354,-500.0,0.00012532,2]
[323325278,1713895780378,-500.0,0.00012532,2]
[323325279,1713895780407,-500.0,0.00012532,2]
[323325280,1713895780427,-500.0,0.00012532,2]
[323325281,1713895780448,-500.0,0.00012532,2]
[323325282,1713895780471,-459.87035349,0.00012532,2]
[323325283,1713895780492,-500.0,0.00012532,2]
[323325284,1713895780514,-500.0,0.00012532,2]
[323325285,1713895780534,-500.0,0.00012532,2]
[323325286,1713895780556,-500.0,0.00012532,2]
[323325287,1713895780577,-500.0,0.00012532,2]
[323325288,1713895780598,-500.0,0.00012532,2]
[323325289,1713895780619,-428.31169913,0.00012532,2]
[323325290,1713895781623,-71.68830087,0.00012532,2]
[323325291,1713895781644,-500.0,0.00012532,2]
[323325292,1713895781664,-500.0,0.00012532,2]
[323325293,1713895781685,-1266.02,0.00012532,2]
[323325294,1713895781706,-500.0,0.00012532,2]
[323325295,1713895781727,-500.0,0.00012532,2]
[323325296,1713895781748,-500.0,0.00012532,2]
[323325297,1713895781770,-500.0,0.00012532,2]
[323325298,1713895781796,-500.74,0.00012532,2]
[323325299,1713895781818,-500.0,0.00012532,2]
[323325300,1713895781839,-695.96,0.00012532,2]
[323325301,1713895781861,-220.86829957,0.00012532,2]
[323325302,1713895781883,-516.04,0.00012532,2]
[323325303,1713895781903,-500.0,0.00012532,2]
[323325304,1713895781923,-500.0,0.00012532,2]
[323325305,1713895781943,-500.0,0.00012532,2]
[323325306,1713895781964,-500.0,0.00012532,2]
[323325307,1713895781984,-1228.68339956,0.00012532,2]
[323325308,1713895783440,-3865.42660044,0.00012532,2]
[323325309,1713895783462,-6134.57339956,0.00012532,2]
[323325310,1713895784543,-2059.63660044,0.00012532,2]
[323325311,1713895784566,-500.0,0.00012532,2]
[323325312,1713895784587,-664.08,0.00012532,2]
[323325313,1713895784608,-500.0,0.00012532,2]
[323325314,1713895784629,-500.0,0.00012532,2]
[323325315,1713895784653,-500.0,0.00012532,2]
[323325316,1713895784674,-646.79,0.00012532,2]
[323325317,1713895784694,-500.0,0.00012532,2]
[323325318,1713895784714,-500.0,0.00012532,2]
[323325319,1713895784734,-500.0,0.00012532,2]
[323325320,1713895784754,-500.0,0.00012532,2]
[323325321,1713895784774,-500.0,0.00012532,2]
[323325322,1713895784798,-500.0,0.00012532,2]
[323325323,1713895784819,-500.0,0.00012532,2]
[323325324,1713895784844,-500.0,0.00012532,2]
[323325325,1713895784868,-500.0,0.00012532,2]
[323325326,1713895784890,-129.49339956,0.00012532,2]
[323325327,1713895786532,-370.50660044,0.00012532,2]
[323325328,1713895786553,-500.0,0.00012532,2]
[323325329,1713895786574,-500.0,0.00012532,2]
[323325330,1713895786593,-500.0,0.00012532,2]
[323325331,1713895786613,-500.0,0.00012532,2]
[323325332,1713895786633,-1790.82,0.00012532,2]
[323325333,1713895786654,-500.0,0.00012532,2]
[323325334,1713895786675,-500.0,0.00012532,2]
[323325335,1713895786695,-500.0,0.00012532,2]
[323325336,1713895786716,-500.0,0.00012532,2]
[323325337,1713895786737,-500.0,0.00012532,2]
[323325338,1713895786758,-500.0,0.00012532,2]
[323325339,1713895786779,-500.0,0.00012532,2]